fUSD/lending_fUSD_20241018
["ID","MTS","AMOUNT","RATE_DAILY","PERIOD"]
[340430273,1729236632326,-272.1846872,0.0001088,2]
[340430280,1729236638178,-5124.74242063,0.0001088,2]
[340430281,1729236638189,-3621.78988046,0.0001088,2]
[340430282,1729236638200,-1000.0,0.0001088,2]
[340430284,1729236638327,-5906.63080696,0.0001088,2]
[340430285,1729236638339,-1084.94791295,0.0001088,2]
[340430286,1729236638495,-203.57418326,0.00010795,2]
[340430287,1729236638504,-2221.42581673,0.0001088,2]
[340430288,1729236638636,-989643.42333573,0.0001088,2]
[340430289,1729236638645,-407.0994,0.00010895,2]
[340430290,1729236638655,-15226.6994,0.00010898,2]
[340430291,1729236638664,-1006.16047213,0.00010899,2]
[340430292,1729236638673,-499.99,0.00010899,2]
[340430293,1729236638683,-1000.0,0.000109,2]
[340430294,1729236638692,-1424.6073,0.000109,2]
[340430295,1729236638701,-47122.451,0.000109,2]
[340430296,1729236638710,-510.8899,0.000109,2]
[340430297,1729236638720,-3497.970885,0.000109,2]
[340430298,1729236638729,-4565.2603162,0.000109,2]
[340430299,1729236638738,-500.0,0.000109,2]
[340430300,1729236638747,-1938.211,0.000109,2]
[340430301,1729236638756,-159.10157046,0.000109,2]
[340430302,1729236638766,-891.21026958,0.000109,2]
[340430303,1729236638775,-5519.1887,0.000109,2]
[340430304,1729236638784,-1291.4497,0.000109,2]
[340430305,1729236638793,-2809.64762449,0.000109,2]
[340430306,1729236638802,-338.46791679,0.000109,2]
[340430307,1729236638811,-184.10871904,0.000109,2]
[340430308,1729236638820,-184.10871904,0.000109,2]
[340430309,1729236638835,-184.10871904,0.000109,2]
[340430310,1729236638844,-184.10871904,0.000109,2]
[340430311,1729236638853,-14942.18643746,0.000109,2]
[340430312,1729236638863,-5199.52652527,0.000109,2]
[340430313,1729236638872,-733.2478197,0.000109,2]
[340430314,1729236638885,-500.0,0.00010958,2]
[340430315,1729236638895,-456.00629315,0.00010958,2]
[340430316,1729236638904,-500.0,0.00010958,2]
[340430317,1729236638913,-500.0,0.00010958,2]
[340430318,1729236638923,-174.04239409,0.00010958,2]
[340430319,1729236638932,-500.0,0.00010958,2]
[340430320,1729236638941,-500.0,0.00010958,2]
[340430321,1729236638951,-500.0,0.00010958,2]
[340430322,1729236638961,-500.0,0.00010958,2]
[340430323,1729236638972,-500.0,0.00010958,2]
[340430324,1729236638982,-373.18212755,0.00010958,2]
[340430326,1729236638993,-500.0,0.00010958,2]
[340430327,1729236639003,-500.0,0.00010958,2]
[340430328,1729236639014,-500.0,0.00010958,2]
[340430329,1729236639024,-290.61,0.00010958,2]
[340430330,1729236639035,-500.0,0.00010958,2]
[340430331,1729236639044,-400.0,0.00010958,2]
[340430332,1729236639053,-500.0,0.00010958,2]
[340430333,1729236639064,-500.0,0.00010958,2]
[340430334,1729236639079,-500.0,0.00010958,2]
[340430335,1729236639088,-500.0,0.00010958,2]
[340430336,1729236639097,-500.0,0.00010958,2]
[340430337,1729236639106,-500.0,0.00010958,2]
[340430338,1729236639115,-625.77,0.00010958,2]
[340430339,1729236639123,-196.76,0.00010958,2]
[340430340,1729236639133,-598.04,0.00010959,2]
[340430341,1729236639142,-160.52,0.00010959,2]
[340430342,1729236639151,-250.0,0.00010959,2]
[340430343,1729236639160,-151.47916754,0.00010973,2]
[340430344,1729236639169,-343.39898002,0.0001099,2]
[340430345,1729236639180,-343.39898002,0.0001099,2]
[340430346,1729236639191,-672.500002,0.00010997,2]
[340430347,1729236639201,-179.18806623,0.00010999,2]
[340430348,1729236639213,-500.0,0.00010999,2]
[340430349,1729236639222,-312.50143293,0.00010999,2]
[340430350,1729236639232,-500.0,0.00010999,2]
[340430351,1729236639243,-500.0,0.00010999,2]
[340430352,1729236639254,-509.38691367,0.00010999,2]
[340430353,1729236639264,-376.922,0.00010999,2]
[340430354,1729236639274,-169.703,0.00010999,2]
[340430355,1729236639283,-355.03716842,0.00010999,2]
[340430356,1729236639292,-500.0,0.00010999,2]
[340430357,1729236639302,-500.0,0.00010999,2]
[340430358,1729236639311,-500.0,0.00010999,2]
[340430359,1729236639321,-275.01000006,0.00010999,2]
[340430360,1729236639335,-500.0,0.00010999,2]
[340430361,1729236639344,-500.0,0.00010999,2]
[340430362,1729236639353,-500.0,0.00010999,2]
[340430363,1729236639362,-2278.0,0.00010999,2]
[340430364,1729236639371,-500.0,0.00010999,2]
[340430365,1729236639380,-500.0,0.00010999,2]
[340430366,1729236639388,-500.0,0.00010999,2]
[340430367,1729236639398,-500.0,0.00010999,2]
[340430368,1729236639409,-500.0,0.00010999,2]
[340430369,1729236639420,-273.81688851,0.00010999,2]
[340430370,1729236639429,-500.0,0.00010999,2]
[340430371,1729236639440,-500.0,0.00010999,2]
[340430372,1729236639452,-500.0,0.00010999,2]
[340430373,1729236639462,-464.95213073,0.00010999,2]
[340430374,1729236639471,-500.0,0.00010999,2]
[340430375,1729236639481,-500.0,0.00010999,2]
[340430376,1729236639490,-500.0,0.00010999,2]
[340430377,1729236639502,-500.0,0.00010999,2]
[340430378,1729236639513,-500.0,0.00010999,2]
[340430379,1729236639523,-500.0,0.00010999,2]
[340430380,1729236639532,-500.0,0.00010999,2]
[340430381,1729236639541,-500.0,0.00010999,2]
[340430382,1729236639550,-500.0,0.00010999,2]
[340430383,1729236639559,-500.0,0.00010999,2]
[340430384,1729236639568,-500.0,0.00010999,2]
[340430385,1729236639581,-500.0,0.00010999,2]
[340430386,1729236639589,-500.0,0.00010999,2]
[340430387,1729236639598,-500.0,0.00010999,2]
[340430388,1729236639607,-500.0,0.00010999,2]
[340430389,1729236639616,-195.5534379,0.00010999,2]
[340430390,1729236639625,-500.0,0.00010999,2]
[340430391,1729236639634,-500.0,0.00010999,2]
[340430392,1729236639644,-152.38,0.00010999,2]
[340430393,1729236639653,-500.0,0.00010999,2]
[340430394,1729236639662,-500.0,0.00010999,2]
[340430395,1729236639673,-500.0,0.00010999,2]
[340430396,1729236639682,-500.0,0.00010999,2]
[340430397,1729236639691,-500.0,0.00010999,2]
[340430398,1729236639701,-645.90845621,0.00010999,2]
[340430399,1729236639710,-500.0,0.00010999,2]
[340430400,1729236639720,-500.0,0.00010999,2]
[340430401,1729236639729,-500.0,0.00010999,2]
[340430402,1729236639739,-500.0,0.00010999,2]
[340430403,1729236639749,-500.0,0.00010999,2]
[340430404,1729236639759,-500.0,0.00010999,2]
[340430405,1729236639768,-500.0,0.00010999,2]
[340430406,1729236639777,-500.0,0.00010999,2]
[340430407,1729236639786,-419.0,0.00010999,2]
[340430408,1729236639795,-500.0,0.00010999,2]
[340430409,1729236639805,-500.0,0.00010999,2]
[340430410,1729236639814,-500.0,0.00010999,2]
[340430411,1729236639825,-500.0,0.00010999,2]
[340430412,1729236639835,-500.0,0.00010999,2]
[340430413,1729236639844,-493.82,0.00010999,2]
[340430414,1729236639853,-500.0,0.00010999,2]
[340430415,1729236639862,-377.47,0.00010999,2]
[340430416,1729236639872,-500.0,0.00010999,2]
[340430417,1729236639885,-301.37411403,0.00010999,2]
[340430418,1729236639895,-531.57488624,0.00010999,2]
[340430419,1729236639904,-500.0,0.00010999,2]
[340430420,1729236639913,-500.0,0.00010999,2]
[340430421,1729236639923,-500.0,0.00010999,2]
[340430422,1729236639932,-330.22,0.00010999,2]
[340430423,1729236639941,-546.75191879,0.00010999,2]
[340430424,1729236639950,-500.0,0.00010999,2]
[340430425,1729236639960,-500.0,0.00010999,2]
[340430426,1729236639969,-500.0,0.00010999,2]
[340430427,1729236639978,-500.0,0.00010999,2]
[340430428,1729236639987,-500.0,0.00010999,2]
[340430429,1729236639996,-500.0,0.00010999,2]
[340430430,1729236640006,-500.0,0.00010999,2]
[340430431,1729236640016,-500.0,0.00010999,2]
[340430432,1729236640025,-500.0,0.00010999,2]
[340430433,1729236640035,-500.0,0.00010999,2]
[340430434,1729236640043,-500.0,0.00010999,2]
[340430435,1729236640055,-500.0,0.00010999,2]
[340430437,1729236640064,-500.0,0.00010999,2]
[340430438,1729236640075,-500.0,0.00010999,2]
[340430439,1729236640084,-500.0,0.00010999,2]
[340430440,1729236640094,-500.0,0.00010999,2]
[340430441,1729236640103,-500.0,0.00010999,2]
[340430443,1729236640113,-500.0,0.00010999,2]
[340430444,1729236640123,-192.76487518,0.00010999,2]
[340430445,1729236640133,-500.0,0.00010999,2]
[340430446,1729236640142,-500.0,0.00010999,2]
[340430447,1729236640152,-500.0,0.00010999,2]
[340430448,1729236640162,-500.0,0.00010999,2]
[340430449,1729236640171,-500.0,0.00010999,2]
[340430450,1729236640180,-500.0,0.00010999,2]
[340430451,1729236640189,-500.0,0.00010999,2]
[340430452,1729236640199,-500.0,0.00010999,2]
[340430454,1729236640208,-500.0,0.00010999,2]
[340430455,1729236640218,-500.0,0.00010999,2]
[340430456,1729236640227,-557.81,0.00010999,2]
[340430457,1729236640236,-500.0,0.00010999,2]
[340430458,1729236640246,-500.0,0.00010999,2]
[340430459,1729236640257,-500.0,0.00010999,2]
[340430460,1729236640266,-500.0,0.00010999,2]
[340430461,1729236640275,-500.0,0.00010999,2]
[340430462,1729236640286,-541.7912458,0.00010999,2]
[340430463,1729236640297,-500.0,0.00010999,2]
[340430464,1729236640306,-500.0,0.00010999,2]
[340430465,1729236640316,-500.0,0.00010999,2]
[340430466,1729236640327,-500.0,0.00010999,2]
[340430467,1729236640336,-875.45,0.00010999,7]
[340430468,1729236640345,-875.45,0.00010999,7]
[340430469,1729236640354,-875.45,0.00010999,7]
[340430470,1729236640363,-875.45,0.00010999,7]
[340430471,1729236640372,-875.45,0.00010999,7]
[340430472,1729236640382,-875.45,0.00010999,7]
[340430473,1729236640392,-875.45,0.00010999,7]
[340430474,1729236640401,-875.45,0.00010999,7]
[340430475,1729236640410,-875.45,0.00010999,7]
[340430476,1729236640420,-875.45,0.00010999,7]
[340430477,1729236640429,-875.45,0.00010999,7]
[340430478,1729236640439,-875.45,0.00010999,7]
[340430479,1729236640448,-875.45,0.00010999,7]
[340430480,1729236640458,-875.45,0.00010999,7]
[340430481,1729236640467,-875.45,0.00010999,7]
[340430482,1729236640476,-875.45,0.00010999,7]
[340430483,1729236640485,-875.45,0.00010999,7]
[340430484,1729236640494,-875.45,0.00010999,7]
[340430485,1729236640503,-534.49630319,0.00010999,2]
[340430486,1729236640513,-875.45,0.00010999,7]
[340430487,1729236640522,-875.45,0.00010999,7]
[340430488,1729236640531,-875.45,0.00010999,7]
[340430489,1729236640540,-875.45,0.00010999,7]
[340430490,1729236640549,-875.45,0.00010999,7]
[340430491,1729236640559,-875.6359302,0.00010999,7]
[340430492,1729236640568,-500.0,0.00010999,2]
[340430493,1729236640579,-519.30466338,0.00010999,2]
[340430494,1729236640588,-500.0,0.00010999,2]
[340430495,1729236640597,-513.26,0.00010999,2]
[340430496,1729236640606,-500.0,0.00010999,2]
[340430497,1729236640616,-500.0,0.00010999,2]
[340430498,1729236640625,-609.06890531,0.00010999,2]
[340430499,1729236640634,-10000.0,0.00011,2]
[340430500,1729236640643,-92203.74860862,0.00011,2]
[340430501,1729236640728,-322.60009065,0.000109,2]
[340430502,1729236640738,-145.89990935,0.00011,2]
[340430503,1729236640749,-214203.27711333,0.00011,2]
[340430504,1729236640760,-368091.08680313,0.00011,2]
[340430553,1729236643235,-500.0,0.00010958,2]
[340430554,1729236643245,-473.71393198,0.00010958,2]
[340430555,1729236643291,-26.28606802,0.00010958,2]
[340430556,1729236643301,-399.45393191,0.00011,2]
[340430559,1729236644282,170.11,9.987e-05,2]
[340430561,1729236646181,-203.57418324,0.00010847,2]
[340430562,1729236646191,-72.97280896,0.00010958,2]
[340430563,1729236646203,-427.02719104,0.00010958,2]
[340430564,1729236646213,-234.53212634,0.00010958,2]
[340430565,1729236646222,-150.01,0.00010999,2]
[340430566,1729236646232,-500.0,0.00010999,2]
[340430567,1729236646242,-3660.08181485,0.00011,2]
[340430568,1729236646253,-5268.6,0.00011,2]
[340430569,1729236646264,-10232.704822,0.00011,2]
[340430570,1729236646431,-986.92049226,0.00011,2]
[340430572,1729236776902,250.0,0.00010086,2]
[340430573,1729236841069,6862.34891148,0.00025,120]
[340430574,1729236852549,440.25828064,0.00021,30]
[340430576,1729236918563,200.0,0.00010143,2]
[340430577,1729236991639,809.27,8.219e-05,2]
[340430578,1729237152452,250.0,0.00010042,2]
[340430579,1729237171361,515.92,0.00010079,2]
[340430580,1729237337613,150.0,0.000104,2]
[340430581,1729237367258,250.0,0.00010135,2]
[340430582,1729237469480,840.0,0.00010093,2]
[340430583,1729237520989,768.8,8.219e-05,2]
[340430585,1729237641125,-768.8,0.00010482,2]
[340430586,1729237641145,-1158.4109,0.0001068,2]
[340430587,1729237641165,-252.8748098,0.0001068,2]
[340430588,1729237641185,-816.93250539,0.00010779,2]
[340430589,1729237670373,250.0,0.00010205,2]
[340430590,1729237671127,194.76,0.00010205,2]
[340430592,1729237832302,-420.816,0.0001065,5]
[340430593,1729237832358,-598.97184433,0.0001065,5]
[340430594,1729237832369,-7204.84632773,0.0001065,5]
[340430595,1729237832548,-792.5901174,0.0001065,5]
[340430596,1729237832562,-661.82674922,0.0001065,5]
[340430597,1729237832577,-3163.61163349,0.0001065,5]
[340430598,1729237832586,-150.0,0.00010692,2]
[340430599,1729237832595,-183.06749461,0.00010779,2]
[340430600,1729237832604,-150.0,0.00010779,2]
[340430601,1729237832614,-184.48127985,0.0001078,2]
[340430602,1729237832625,-337.45782015,0.0001078,2]
[340430603,1729237832634,-4708.35904424,0.0001078,2]
[340430604,1729237832645,-2613.10872722,0.0001078,2]
[340430605,1729237832660,-42258.48772854,0.0001078,2]
[340430606,1729237832669,-20258.53677804,0.000108,2]
[340430608,1729237832680,-1298.29851612,0.000108,2]
[340430610,1729237832691,-573.88723251,0.000108,2]
[340430612,1729237832702,-1830.0504098,0.000108,2]
[340430614,1729237832745,-1974.8225,0.000108,2]
[340430616,1729237832756,-544.64501583,0.000108,2]
[340430617,1729237832767,-261.39657885,0.000108,2]
[340430629,1729237838445,-990.63368508,0.000108,2]
[340430630,1729237838617,-2498.66487548,0.000108,2]
[340430631,1729237838628,-754.42976308,0.000108,2]
[340430632,1729237838647,-37265.8990023,0.000108,2]
[340430633,1729237838658,-3484.5449977,0.00010895,2]
[340430634,1729237838671,-4015.4550023,0.00010895,2]
[340430635,1729237838682,-208.94796885,0.000109,2]
[340430636,1729237838693,-2904.39934071,0.000109,2]
[340430637,1729237838704,-203.57418324,0.000109,2]
[340430638,1729237838715,-1023.0852559,0.000109,2]
[340430639,1729237838728,-981.39460922,0.000109,2]
[340430640,1729237838739,-533.30922156,0.00010958,2]
[340430641,1729237838749,-500.0,0.00010958,2]
[340430642,1729237838760,-500.0,0.00010958,2]
[340430643,1729237838771,-288.10242835,0.00010958,2]
[340430644,1729237838782,-500.0,0.00010958,2]
[340430645,1729237838793,-500.0,0.00010958,2]
[340430646,1729237838805,-500.0,0.00010958,2]
[340430647,1729237838816,-445.19897696,0.00010958,2]
[340430648,1729237838826,-500.0,0.00010958,2]
[340430649,1729237838836,-500.0,0.00010958,2]
[340430650,1729237838847,-500.0,0.00010958,2]
[340430651,1729237838858,-475.67900372,0.00010958,2]
[340430652,1729237838869,-500.0,0.00010958,2]
[340430653,1729237838882,-500.0,0.00010958,2]
[340430654,1729237838892,-500.0,0.00010958,2]
[340430655,1729237838902,-500.0,0.00010958,2]
[340430656,1729237838914,-500.0,0.00010958,2]
[340430657,1729237838925,-500.0,0.00010958,2]
[340430658,1729237838936,-500.0,0.00010958,2]
[340430659,1729237838947,-500.0,0.00010958,2]
[340430660,1729237838957,-304.5,0.00010958,2]
[340430661,1729237838968,-500.0,0.00010958,2]
[340430662,1729237838979,-557.67,0.00010958,2]
[340430663,1729237838988,-548.19,0.00010958,2]
[340430664,1729237838998,-500.0,0.00010958,2]
[340430665,1729237839008,-500.0,0.00010958,2]
[340430666,1729237839018,-500.0,0.00010958,2]
[340430667,1729237839029,-528.36,0.00010958,2]
[340430668,1729237839040,-500.0,0.00010958,2]
[340430669,1729237839051,-500.0,0.00010958,2]
[340430670,1729237839062,-500.0,0.00010958,2]
[340430671,1729237839072,-500.0,0.00010958,2]
[340430672,1729237839087,-500.0,0.00010958,2]
[340430673,1729237839098,-500.0,0.00010958,2]
[340430674,1729237839110,-500.0,0.00010958,2]
[340430675,1729237839123,-500.0,0.00010958,2]
[340430676,1729237839134,-500.0,0.00010958,2]
[340430677,1729237839144,-544.76889516,0.00010958,2]
[340430678,1729237839156,-500.0,0.00010958,2]
[340430679,1729237839169,-500.0,0.00010958,2]
[340430680,1729237839180,-623.16,0.00010958,2]
[340430681,1729237839191,-500.0,0.00010958,2]
[340430682,1729237839202,-500.0,0.00010958,2]
[340430683,1729237839214,-500.0,0.00010958,2]
[340430684,1729237839224,-500.0,0.00010958,2]
[340430685,1729237839234,-500.0,0.00010958,2]
[340430686,1729237839243,-500.0,0.00010958,2]
[340430687,1729237839253,-500.0,0.00010958,2]
[340430688,1729237839262,-500.0,0.00010958,2]
[340430689,1729237839272,-500.0,0.00010958,2]
[340430690,1729237839282,-514.7,0.00010958,2]
[340430691,1729237839292,-500.0,0.00010958,2]
[340430692,1729237839303,-478.43,0.00010959,2]
[340430693,1729237839314,-304.41,0.00010959,2]
[340430694,1729237839326,-250.0,0.00010959,2]
[340430695,1729237839336,-499.99,0.00010959,2]
[340430696,1729237839347,-500.0,0.00010973,2]
[340430697,1729237839358,-177.20452617,0.0001099,2]
[340430698,1729237839367,-177.20452617,0.0001099,2]
[340430699,1729237839377,-177.20452617,0.0001099,2]
[340430700,1729237839387,-500.0,0.00010994,2]
[340430701,1729237839398,-500.0,0.00010994,2]
[340430702,1729237839408,-500.0,0.00010994,2]
[340430703,1729237839419,-500.0,0.00010994,2]
[340430704,1729237839429,-500.0,0.00010994,2]
[340430705,1729237839439,-521.36387504,0.00010994,2]
[340430706,1729237839450,-500.0,0.00010994,2]
[340430707,1729237839460,-500.0,0.00010994,2]
[340430708,1729237839469,-500.0,0.00010994,2]
[340430709,1729237839479,-533.06235255,0.00010994,2]
[340430710,1729237839488,-579.0491279,0.00010994,2]
[340430711,1729237839498,-500.0,0.00010994,2]
[340430712,1729237839508,-500.0,0.00010994,2]
[340430713,1729237839518,-500.0,0.00010994,2]
[340430714,1729237839528,-539.0375061,0.00010994,2]
[340430715,1729237839538,-514.38723228,0.00010994,2]
[340430716,1729237839548,-19.65662065,0.00010994,2]
[340430717,1729237839561,-480.34337935,0.00010994,2]
[340430718,1729237839571,-500.0,0.00010994,2]
[340430719,1729237839582,-500.0,0.00010994,2]
[340430720,1729237839594,-500.0,0.00010994,2]
[340430721,1729237839604,-500.0,0.00010994,2]
[340430722,1729237839614,-500.0,0.00010994,2]
[340430723,1729237839624,-499.25779932,0.00010994,2]
[340430724,1729237839635,-500.0,0.00010994,2]
[340430725,1729237839645,-500.0,0.00010994,2]
[340430726,1729237839655,-500.0,0.00010994,2]
[340430727,1729237839665,-500.0,0.00010994,2]
[340430728,1729237839675,-500.0,0.00010994,2]
[340430729,1729237839685,-501.77591668,0.00010994,2]
[340430730,1729237839695,-190.39033674,0.00010994,2]
[340430731,1729237839717,-309.60966326,0.00010994,2]
[340430732,1729237839727,-500.0,0.00010994,2]
[340430733,1729237839737,-500.0,0.00010994,2]
[340430734,1729237839747,-500.0,0.00010994,2]
[340430735,1729237839757,-500.0,0.00010994,2]
[340430736,1729237839768,-500.0,0.00010994,2]
[340430737,1729237839778,-500.0,0.00010994,2]
[340430738,1729237839788,-500.0,0.00010994,2]
[340430739,1729237839798,-500.0,0.00010994,2]
[340430740,1729237839808,-500.0,0.00010994,2]
[340430741,1729237839819,-500.0,0.00010994,2]
[340430742,1729237839829,-500.0,0.00010994,2]
[340430743,1729237839839,-500.0,0.00010994,2]
[340430744,1729237839849,-500.0,0.00010994,2]
[340430745,1729237839860,-500.0,0.00010994,2]
[340430746,1729237839870,-5990.1473774,0.00010995,2]
[340430747,1729237839880,-500.0,0.00010998,2]
[340430748,1729237839890,-150.01,0.00010999,2]
[340430749,1729237839900,-500.0,0.00010999,2]
[340430750,1729237839911,-81573.62061247,0.00010999,2]
[340430751,1729237839921,-500.0,0.00010999,2]
[340430752,1729237839932,-500.0,0.00010999,2]
[340430753,1729237839942,-500.0,0.00010999,2]
[340430754,1729237839952,-2278.0,0.00010999,2]
[340430755,1729237839963,-174.05644677,0.00010999,2]
[340430756,1729237839973,-500.0,0.00010999,2]
[340430757,1729237839984,-500.0,0.00010999,2]
[340430758,1729237839995,-500.0,0.00010999,2]
[340430759,1729237840005,-500.0,0.00010999,2]
[340430760,1729237840016,-500.0,0.00010999,2]
[340430761,1729237840027,-500.0,0.00010999,2]
[340430762,1729237840038,-500.0,0.00010999,2]
[340430763,1729237840049,-500.0,0.00010999,2]
[340430764,1729237840059,-502.4704877,0.00010999,2]
[340430765,1729237840070,-500.0,0.00010999,2]
[340430766,1729237840081,-641.74636213,0.00010999,2]
[340430767,1729237840092,-500.0,0.00010999,2]
[340430768,1729237840108,-500.0,0.00010999,2]
[340430769,1729237840120,-365.73055494,0.00010999,2]
[340430770,1729237840131,-150.7863319,0.00010999,2]
[340430771,1729237840143,-500.0,0.00010999,2]
[340430772,1729237840153,-206.17486912,0.00010999,2]
[340430773,1729237840164,-316.04430693,0.00010999,2]
[340430774,1729237840174,-607.0,0.00011,2]
[340430775,1729237840188,-194.82046045,0.00011,2]
[340430776,1729237840198,-71049.73143099,0.00011,2]
[340430777,1729237840209,-862154.44855609,0.00011,2]
[340430778,1729237840222,-22174.83459856,0.00011,2]
[340430783,1729237840339,-1273.0159337,0.00010995,2]
[340430785,1729237840350,-1224.2859401,0.00011,2]
[340430806,1729237843463,-735.0,0.00011,2]
[340430807,1729237843495,-576839.254,0.00011,2]
[340430808,1729237843668,-6842.75804978,0.00011,2]
[340430810,1729237846440,-376.87925389,0.00011,2]
[340430811,1729237846505,-162.12074611,0.00011,2]
[340430812,1729237846517,-5638.47838707,0.00011,2]
[340430813,1729237846530,-12040.40045785,0.00011,2]
[340430814,1729237846564,-34104.07199999,0.00011,2]
[340430815,1729237898126,550.0,0.0001,2]
[340430816,1729238008895,200.0,0.0001005,2]
[340430817,1729238009865,328.0,0.0001005,2]
[340430818,1729238141334,1906.16,9.894e-05,2]
[340430819,1729238147327,170.61,9.894e-05,2]
[340430820,1729238158239,179.48,9.894e-05,2]
[340430821,1729238188911,-300.0,0.00010599,2]
[340430822,1729238188931,-700.0,0.000106,2]
[340430823,1729238190645,-619.679,0.000106,2]
[340430824,1729238190667,-380.321,0.00010657,2]
[340430825,1729238191614,-1000.0,0.00010657,2]
[340430826,1729238195447,-1000.0,0.00010672,2]
[340430827,1729238198464,250.0,9.945e-05,2]
[340430828,1729238214580,-163.59294037,0.00010586,2]
[340430829,1729238214600,-836.40705963,0.000107,2]
[340430830,1729238216462,-1000.0,0.000107,2]
[340430831,1729238217572,-1000.0,0.000107,2]
[340430832,1729238219137,-969.59904037,0.000107,2]
[340430833,1729238219158,-30.40095963,0.00010701,2]
[340430834,1729238220123,-1000.0,0.00010701,2]
[340430835,1729238221439,-863.27904037,0.00010701,2]
[340430836,1729238221460,-136.72095963,0.00010744,2]
[340430837,1729238223096,-1000.0,0.00010758,2]
[340430838,1729238224972,-1000.0,0.00010758,2]
[340430839,1729238226853,-1000.0,0.00010758,2]
[340430840,1729238242558,691.92,8.219e-05,2]
[340430841,1729238246167,168.49,0.00010028,2]
[340430842,1729238260909,171.47,9.97e-05,2]
[340430843,1729238297825,155.19738947,0.00025,120]
[340430844,1729238511102,200.64,0.00010252,2]
[340430845,1729238522138,737.6,0.00010184,2]
[340430846,1729238550525,150.0,0.00010386,2]
[340430847,1729238557318,250.0,0.00010159,2]
[340430848,1729238663418,170.11,0.00010295,2]
[340430849,1729238672599,196.18470758,0.00010389,2]
[340430850,1729238693036,339.35357302,0.00010337,2]
[340430851,1729238713776,250.0,0.00010294,2]
[340430852,1729238794035,150.0,0.00010391,2]
[340430853,1729238804945,657.32,8.332e-05,2]
[340430854,1729238819813,3282.8596,0.00010378,2]
[340430855,1729238840212,-657.32,0.00010596,2]
[340430856,1729238840232,-2731.96726652,0.000106,2]
[340430857,1729238850771,150.0,0.00024866,120]
[340430859,1729239031510,-150.0,0.00010513,2]
[340430860,1729239031520,-3134.33424329,0.000106,2]
[340430861,1729239031529,-549.84760936,0.00010614,2]
[340430862,1729239031541,-340.28165674,0.00010614,2]
[340430863,1729239031566,-263.99149982,0.00010614,2]
[340430864,1729239031578,-1980.21347737,0.00010614,2]
[340430865,1729239031587,-3134.33424329,0.00010629,2]
[340430866,1729239031597,-300.0,0.00010642,2]
[340430867,1729239031608,-3134.33424329,0.00010643,2]
[340430868,1729239031619,-3134.33424329,0.00010657,2]
[340430869,1729239031633,-3134.33424329,0.00010672,2]
[340430870,1729239031644,-3134.33424329,0.00010686,2]
[340430871,1729239031656,-423.86,0.000107,2]
[340430872,1729239031669,-3134.33424329,0.00010701,2]
[340430873,1729239031681,-3134.33424329,0.00010715,2]
[340430874,1729239031693,-3134.33424329,0.00010729,2]
[340430875,1729239031704,-3134.33424329,0.00010744,2]
[340430876,1729239031714,-3134.33424329,0.00010758,2]
[340430877,1729239031724,-1283.0,0.00010858,2]
[340430878,1729239031736,-1595.7447,0.00010894,2]
[340430879,1729239031747,-600.8192,0.00010895,2]
[340430880,1729239031758,-395.6864,0.00010895,2]
[340430881,1729239031769,-260.07,0.00010959,2]